fUST/lending_fUST_20241201
["ID","MTS","AMOUNT","RATE_DAILY","PERIOD"]
[343920526,1733068247158,-565.27,0.00027671,3]
[343920527,1733068247168,-500.0,0.00027671,3]
[343920528,1733068247177,-500.0,0.00027671,3]
[343920529,1733068247187,-500.0,0.00027671,3]
[343920530,1733068247197,-500.0,0.00027671,3]
[343920531,1733068247207,-500.0,0.00027671,3]
[343920532,1733068247216,-15355.54,0.00027671,3]
[343920533,1733068247226,-16219.47,0.00027671,3]
[343920534,1733068247236,-500.0,0.00027671,3]
[343920535,1733068247248,-500.0,0.00027671,3]
[343920536,1733068247259,-500.0,0.00027671,3]
[343920537,1733068247268,-500.0,0.00027671,3]
[343920538,1733068247278,-500.0,0.00027671,3]
[343920539,1733068247290,-500.0,0.00027671,3]
[343920540,1733068247300,-500.0,0.00027671,3]
[343920541,1733068247311,-500.0,0.00027671,3]
[343920542,1733068247322,-500.0,0.00027671,3]
[343920543,1733068247333,-1040.6,0.00027671,3]
[343920544,1733068247343,-2488.21,0.00027671,3]
[343920545,1733068247352,-500.0,0.00027671,3]
[343920546,1733068247362,-500.0,0.00027671,3]
[343920547,1733068247372,-621.03037106,0.00027671,3]
[343920548,1733068247382,-500.0,0.00027671,3]
[343920549,1733068247391,-500.0,0.00027671,3]
[343920550,1733068247401,-500.0,0.00027671,3]
[343920551,1733068247410,-500.0,0.00027671,3]
[343920552,1733068247420,-500.0,0.00027671,3]
[343920553,1733068247430,-500.0,0.00027671,3]
[343920554,1733068247439,-500.0,0.00027671,3]
[343920555,1733068247449,-500.0,0.00027671,3]
[343920556,1733068247459,-512.75298231,0.00027671,3]
[343920557,1733068247469,-500.0,0.00027671,3]
[343920558,1733068247478,-500.0,0.00027671,3]
[343920559,1733068247488,-651.83,0.00027671,3]
[343920560,1733068247497,-500.0,0.00027671,3]
[343920561,1733068247510,-470.18998515,0.00027671,3]
[343920562,1733068247520,-1055.7,0.00027671,3]
[343920563,1733068247530,-1366.59,0.00027671,3]
[343920564,1733068247540,-500.0,0.00027671,3]
[343920565,1733068247549,-500.0,0.00027671,3]
[343920566,1733068247559,-6292.63,0.00027671,3]
[343920567,1733068247569,-7411.92,0.00027671,3]
[343920568,1733068247579,-500.0,0.00027671,3]
[343920569,1733068247588,-500.0,0.00027671,3]
[343920570,1733068247598,-500.0,0.00027671,3]
[343920571,1733068247608,-500.0,0.00027671,3]
[343920572,1733068247620,-500.0,0.00027671,3]
[343920573,1733068247629,-233.79629936,0.00027671,3]
[343920574,1733068247639,-590.24,0.00027671,3]
[343920575,1733068247649,-500.0,0.00027671,3]
[343920576,1733068247658,-500.0,0.00027671,3]
[343920577,1733068247669,-502.63112738,0.00027671,3]
[343920578,1733068247678,-502.13078477,0.00027671,3]
[343920579,1733068247688,-500.0,0.00027671,3]
[343920580,1733068247697,-500.0,0.00027671,3]
[343920581,1733068247708,-500.0,0.00027671,3]
[343920582,1733068247718,-500.0,0.00027671,3]
[343920583,1733068247727,-500.0,0.00027671,3]
[343920584,1733068247737,-500.0,0.00027671,3]
[343920585,1733068247747,-537.35572424,0.00027671,3]
[343920586,1733068247757,-1517.8,0.00027671,3]
[343920587,1733068247767,-644.90848233,0.00027671,3]
[343920588,1733068247777,-500.0,0.00027671,3]
[343920589,1733068247787,-503.31161193,0.00027671,3]
[343920590,1733068247796,-500.0,0.00027671,3]
[343920591,1733068247806,-500.0,0.00027671,3]
[343920592,1733068247816,-500.0,0.00027671,3]
[343920593,1733068247825,-500.0,0.00027671,3]
[343920594,1733068247915,-500.0,0.00027671,3]
[343920595,1733068247924,-500.0,0.00027671,3]
[343920596,1733068247934,-1188.54,0.00027671,3]
[343920597,1733068247944,-500.0,0.00027671,3]
[343920598,1733068247954,-500.0,0.00027671,3]
[343920599,1733068247964,-1649.22,0.00027671,3]
[343920600,1733068247973,-500.0,0.00027671,3]
[343920601,1733068247983,-500.0,0.00027671,3]
[343920602,1733068247993,-500.0,0.00027671,3]
[343920603,1733068248003,-500.0,0.00027671,3]
[343920604,1733068248016,-500.0,0.00027671,3]
[343920605,1733068248026,-1194.25,0.00027671,3]
[343920606,1733068248036,-500.0,0.00027671,3]
[343920607,1733068248046,-500.0,0.00027671,3]
[343920608,1733068248056,-500.0,0.00027671,3]
[343920609,1733068248066,-500.0,0.00027671,3]
[343920610,1733068248075,-500.0,0.00027671,3]
[343920611,1733068248086,-500.0,0.00027671,3]
[343920612,1733068248095,-318.64311084,0.00027671,3]
[343920613,1733068248105,-663.18,0.00027671,3]
[343920614,1733068248115,-661.34,0.00027671,3]
[343920615,1733068248124,-500.0,0.00027671,3]
[343920616,1733068248133,-508.46258604,0.00027671,3]
[343920617,1733068248143,-500.0,0.00027671,3]
[343920618,1733068248152,-500.0,0.00027671,3]
[343920619,1733068248162,-161.37200598,0.00027708,2]
[343920620,1733068248171,-916.72,0.000279,2]
[343920621,1733068248181,-330.47,0.000279,31]
[343920622,1733068248191,-330.47,0.000279,31]
[343920623,1733068248201,-330.47,0.000279,31]
[343920624,1733068248211,-330.47,0.000279,31]
[343920625,1733068248221,-330.47,0.000279,31]
[343920626,1733068248231,-330.47,0.000279,31]
[343920627,1733068248244,-330.47,0.000279,31]
[343920628,1733068248254,-330.47,0.000279,31]
[343920629,1733068248266,-330.47,0.000279,31]
[343920630,1733068248275,-330.47,0.000279,31]
[343920631,1733068248286,-330.47,0.000279,31]
[343920632,1733068248296,-330.47,0.000279,31]
[343920633,1733068248306,-161.37200598,0.00027914,2]
[343920634,1733068248317,-500.0,0.00027945,3]
[343920635,1733068248327,-500.0,0.00027945,3]
[343920636,1733068248337,-500.0,0.00027945,3]
[343920637,1733068248346,-398.77617636,0.00027945,3]
[343920638,1733068248356,-552.55,0.00027945,3]
[343920639,1733068248366,-527.50217421,0.00027945,3]
[343920640,1733068248375,-500.0,0.00027945,3]
[343920641,1733068248385,-500.0,0.00027945,3]
[343920642,1733068248395,-500.0,0.00027945,3]
[343920643,1733068248405,-500.0,0.00027945,3]
[343920644,1733068248415,-500.0,0.00027945,3]
[343920645,1733068248425,-500.0,0.00027945,3]
[343920646,1733068248435,-151.0,0.00027945,7]
[343920647,1733068248445,-500.0,0.00027945,3]
[343920648,1733068248455,-768.27,0.00027945,3]
[343920649,1733068248464,-500.0,0.00027945,3]
[343920650,1733068248474,-500.0,0.00027945,3]
[343920651,1733068248484,-500.0,0.00027945,3]
[343920652,1733068248494,-500.0,0.00027945,3]
[343920653,1733068248505,-500.0,0.00027945,3]
[343920654,1733068248517,-500.0,0.00027945,3]
[343920655,1733068248527,-500.12047047,0.00027945,3]
[343920656,1733068248537,-500.0,0.00027945,3]
[343920657,1733068248547,-500.0,0.00027945,3]
[343920658,1733068248557,-500.0,0.00027945,3]
[343920659,1733068248567,-500.0,0.00027945,3]
[343920660,1733068248578,-500.0,0.00027945,3]
[343920661,1733068248588,-500.0,0.00027945,3]
[343920662,1733068248598,-1000.0,0.00027945,2]
[343920663,1733068248607,-502.01859776,0.00027945,3]
[343920664,1733068248617,-500.0,0.00027945,3]
[343920665,1733068248629,-732.85,0.00027945,3]
[343920666,1733068248639,-504.01186813,0.00027945,3]
[343920667,1733068248650,-180.05603968,0.00027945,3]
[343920668,1733068248660,-515.54178256,0.00027945,3]
[343920669,1733068248671,-645.63747554,0.00027945,3]
[343920670,1733068248681,-283.92,0.00027945,3]
[343920671,1733068248691,-649.52961552,0.00027945,3]
[343920672,1733068248701,-576.13,0.00027945,3]
[343920673,1733068248711,-520.20597458,0.00027945,3]
[343920674,1733068248721,-500.0,0.00027945,3]
[343920675,1733068248732,-500.0,0.00027945,3]
[343920676,1733068248743,-500.0,0.00027945,3]
[343920677,1733068248753,-500.0,0.00027945,3]
[343920678,1733068248765,-255.71419845,0.00027945,3]
[343920679,1733068248779,-500.0,0.00027945,3]
[343920680,1733068248789,-500.0,0.00027945,3]
[343920681,1733068248799,-500.0,0.00027945,3]
[343920682,1733068248809,-500.0,0.00027945,3]
[343920683,1733068248821,-594.81,0.00027945,3]
[343920684,1733068248831,-500.0,0.00027945,3]
[343920685,1733068248842,-500.0,0.00027945,3]
[343920686,1733068248854,-845.7,0.00027945,3]
[343920687,1733068248864,-1460.13,0.00027945,3]
[343920688,1733068248875,-3621.57,0.00027945,3]
[343920689,1733068248886,-500.0,0.00027945,3]
[343920690,1733068248897,-500.0,0.00027945,3]
[343920691,1733068248907,-641.61433354,0.00027945,3]
[343920692,1733068248918,-500.0,0.00027945,3]
[343920693,1733068248929,-500.0,0.00027945,3]
[343920694,1733068248941,-500.0,0.00027945,3]
[343920695,1733068248953,-500.0,0.00027945,3]
[343920696,1733068248963,-500.0,0.00027945,3]
[343920697,1733068248974,-699.92,0.00027945,3]
[343920698,1733068248984,-579.62,0.00027945,3]
[343920699,1733068248995,-554.66,0.00027945,3]
[343920700,1733068249006,-500.0,0.00027945,3]
[343920701,1733068249024,-500.0,0.00027945,3]
[343920702,1733068249034,-500.0,0.00027945,3]
[343920703,1733068249044,-500.0,0.00027945,3]
[343920704,1733068249055,-565.27,0.00027945,3]
[343920705,1733068249065,-500.0,0.00027945,3]
[343920706,1733068249075,-500.0,0.00027945,3]
[343920707,1733068249085,-399.69032047,0.00027945,3]
[343920708,1733068249095,-198.98067689,0.00027945,3]
[343920709,1733068249106,-500.0,0.00027945,3]
[343920710,1733068249117,-15355.54,0.00027945,3]
[343920711,1733068249128,-16219.47,0.00027945,3]
[343920712,1733068249139,-500.0,0.00027945,3]
[343920713,1733068249149,-500.0,0.00027945,3]
[343920714,1733068249159,-500.0,0.00027945,3]
[343920715,1733068249170,-514.86827923,0.00027945,3]
[343920716,1733068249180,-500.0,0.00027945,3]
[343920717,1733068249191,-500.0,0.00027945,3]
[343920718,1733068249201,-500.0,0.00027945,3]
[343920719,1733068249211,-500.0,0.00027945,3]
[343920720,1733068249222,-1040.6,0.00027945,3]
[343920721,1733068249232,-500.0,0.00027945,3]
[343920722,1733068249243,-2488.21,0.00027945,3]
[343920723,1733068249256,-500.0,0.00027945,3]
[343920724,1733068249270,-500.0,0.00027945,3]
[343920725,1733068249280,-500.0,0.00027945,3]
[343920726,1733068249291,-500.0,0.00027945,3]
[343920727,1733068249301,-500.0,0.00027945,3]
[343920728,1733068249310,-500.0,0.00027945,3]
[343920729,1733068249320,-500.0,0.00027945,3]
[343920730,1733068249331,-500.0,0.00027945,3]
[343920731,1733068249340,-644.18166757,0.00027945,3]
[343920732,1733068249349,-500.0,0.00027945,3]
[343920733,1733068249359,-509.58148853,0.00027945,3]
[343920734,1733068249369,-500.0,0.00027945,3]
[343920735,1733068249379,-651.83,0.00027945,3]
[343920736,1733068249388,-370.7932444,0.00027945,3]
[343920737,1733068249398,-1055.7,0.00027945,3]
[343920738,1733068249407,-1366.59,0.00027945,3]
[343920739,1733068249417,-500.0,0.00027945,3]
[343920740,1733068249427,-500.0,0.00027945,3]
[343920741,1733068249436,-6292.63,0.00027945,3]
[343920742,1733068249446,-7411.92,0.00027945,3]
[343920743,1733068249455,-500.0,0.00027945,3]
[343920744,1733068249465,-500.0,0.00027945,3]
[343920745,1733068249474,-504.48340195,0.00027945,3]
[343920746,1733068249484,-195.19174052,0.00027945,3]
[343920747,1733068249494,-648.63266979,0.00027945,3]
[343920748,1733068249504,-590.24,0.00027945,3]
[343920749,1733068249515,-500.0,0.00027945,3]
[343920750,1733068249525,-500.0,0.00027945,3]
[343920751,1733068249535,-500.0,0.00027945,3]
[343920752,1733068249546,-500.0,0.00027945,3]
[343920753,1733068249556,-502.61774956,0.00027945,3]
[343920754,1733068249566,-555.12531868,0.00027945,3]
[343920755,1733068249577,-302.72991693,0.00027945,3]
[343920756,1733068249587,-500.0,0.00027945,3]
[343920757,1733068249597,-1517.8,0.00027945,3]
[343920758,1733068249607,-432.7,0.00027945,3]
[343920759,1733068249617,-506.57359398,0.00027945,3]
[343920760,1733068249628,-500.0,0.00027945,3]
[343920761,1733068249638,-500.0,0.00027945,3]
[343920762,1733068249647,-500.0,0.00027945,3]
[343920763,1733068249657,-500.0,0.00027945,3]
[343920764,1733068249667,-500.0,0.00027945,3]
[343920765,1733068249677,-1188.54,0.00027945,3]
[343920766,1733068249687,-500.0,0.00027945,3]
[343920767,1733068249696,-500.0,0.00027945,3]
[343920768,1733068249705,-1649.22,0.00027945,3]
[343920769,1733068249715,-500.0,0.00027945,3]
[343920770,1733068249725,-500.0,0.00027945,3]
[343920771,1733068249735,-500.0,0.00027945,3]
[343920772,1733068249744,-595.74515686,0.00027945,3]
[343920773,1733068249754,-1194.25,0.00027945,3]
[343920774,1733068249766,-500.0,0.00027945,3]
[343920775,1733068249775,-500.0,0.00027945,3]
[343920776,1733068249786,-500.0,0.00027945,3]
[343920777,1733068249795,-500.0,0.00027945,3]
[343920778,1733068249805,-501.63892127,0.00027945,3]
[343920779,1733068249815,-663.18,0.00027945,3]
[343920780,1733068249825,-661.34,0.00027945,3]
[343920781,1733068249835,-209.4468625,0.00027945,3]
[343920782,1733068249844,-500.0,0.00027945,3]
[343920783,1733068249854,-500.0,0.00027945,3]
[343920784,1733068249865,-215.0062422,0.00027973,2]
[343920785,1733068249875,-150.0,0.0002798,2]
[343920786,1733068249884,-2377.0,0.0002798,2]
[343920787,1733068249894,-161.37200598,0.00028119,2]
[343920788,1733068249903,-335.44706892,0.00028119,2]
[343920789,1733068249912,-1000.0,0.000282,2]
[343920790,1733068249922,-386.55066965,0.00028218,2]
[343920791,1733068249931,-500.0,0.00028219,3]
[343920792,1733068249939,-500.0,0.00028219,3]
[343920793,1733068249949,-552.55,0.00028219,3]
[343920794,1733068249958,-500.0,0.00028219,3]
[343920795,1733068249967,-643.10803236,0.00028219,3]
[343920796,1733068249976,-494.41263024,0.00028219,3]
[343920797,1733068249985,-500.0,0.00028219,3]
[343920798,1733068249994,-500.0,0.00028219,3]
[343920799,1733068250003,-536.52768851,0.00028219,3]
[343920800,1733068250014,-151.0,0.00028219,7]
[343920801,1733068250023,-291.18616365,0.00028219,3]
[343920802,1733068250032,-768.27,0.00028219,3]
[343920803,1733068250041,-500.0,0.00028219,3]
[343920804,1733068250051,-500.0,0.00028219,3]
[343920805,1733068250060,-500.0,0.00028219,3]
[343920806,1733068250069,-500.0,0.00028219,3]
[343920807,1733068250078,-506.85264001,0.00028219,2]
[343920808,1733068250089,-500.0,0.00028219,3]
[343920809,1733068250098,-500.0,0.00028219,3]
[343920810,1733068250107,-500.0,0.00028219,3]
[343920811,1733068250116,-500.0,0.00028219,3]
[343920812,1733068250126,-500.0,0.00028219,3]
[343920813,1733068250135,-500.0,0.00028219,3]
[343920814,1733068250144,-500.0,0.00028219,3]
[343920815,1733068250153,-500.0,0.00028219,3]
[343920816,1733068250162,-1000.0,0.00028219,2]
[343920817,1733068250172,-500.0,0.00028219,3]
[343920818,1733068250249,-732.85,0.00028219,3]
[343920819,1733068250272,-576.13,0.00028219,3]
[343920820,1733068250283,-500.0,0.00028219,3]
[343920821,1733068250294,-596.76136661,0.00028219,3]
[343920822,1733068250304,-500.0,0.00028219,3]
[343920823,1733068250313,-500.0,0.00028219,3]
[343920824,1733068250324,-500.0,0.00028219,3]
[343920825,1733068250334,-500.0,0.00028219,3]
[343920826,1733068250343,-500.0,0.00028219,3]
[343920827,1733068250353,-500.0,0.00028219,3]
[343920828,1733068250363,-594.81,0.00028219,3]
[343920829,1733068250373,-500.0,0.00028219,3]
[343920830,1733068250382,-500.0,0.00028219,3]
[343920831,1733068250391,-845.7,0.00028219,3]
[343920832,1733068250401,-1460.13,0.00028219,3]
[343920833,1733068250411,-3621.57,0.00028219,3]
[343920834,1733068250420,-515.80901652,0.00028219,3]
[343920835,1733068250430,-500.0,0.00028219,3]
[343920836,1733068250440,-500.0,0.00028219,3]
[343920837,1733068250449,-500.0,0.00028219,3]
[343920838,1733068250458,-500.0,0.00028219,3]
[343920839,1733068250468,-500.0,0.00028219,3]
[343920840,1733068250478,-699.92,0.00028219,3]
[343920841,1733068250488,-579.62,0.00028219,3]
[343920842,1733068250498,-554.66,0.00028219,3]
[343920843,1733068250508,-500.0,0.00028219,3]
[343920844,1733068250520,-500.0,0.00028219,3]
[343920845,1733068250530,-631.27510792,0.00028219,3]
[343920846,1733068250540,-500.0,0.00028219,3]
[343920847,1733068250551,-565.27,0.00028219,3]
[343920848,1733068250561,-500.0,0.00028219,3]
[343920849,1733068250571,-500.0,0.00028219,3]
[343920850,1733068250580,-640.83557458,0.00028219,3]
[343920851,1733068250591,-15355.54,0.00028219,3]
[343920852,1733068250601,-16219.47,0.00028219,3]
[343920853,1733068250611,-500.0,0.00028219,3]
[343920854,1733068250621,-511.17557183,0.00028219,3]
[343920855,1733068250631,-500.0,0.00028219,3]
[343920856,1733068250641,-500.0,0.00028219,3]
[343920857,1733068250652,-500.0,0.00028219,3]
[343920858,1733068250662,-500.0,0.00028219,3]
[343920859,1733068250671,-500.0,0.00028219,3]
[343920860,1733068250681,-1040.6,0.00028219,3]
[343920861,1733068250691,-505.33358788,0.00028219,3]
[343920862,1733068250700,-2488.21,0.00028219,3]
[343920863,1733068250710,-500.0,0.00028219,3]
[343920864,1733068250720,-500.0,0.00028219,3]
[343920865,1733068250731,-500.0,0.00028219,3]
[343920866,1733068250740,-500.0,0.00028219,3]
[343920867,1733068250750,-500.0,0.00028219,3]
[343920868,1733068250759,-500.0,0.00028219,3]
[343920869,1733068250771,-500.0,0.00028219,3]
[343920870,1733068250781,-500.0,0.00028219,3]
[343920871,1733068250790,-500.0,0.00028219,3]
[343920872,1733068250800,-500.0,0.00028219,3]
[343920873,1733068250809,-651.83,0.00028219,3]
[343920874,1733068250819,-1055.7,0.00028219,3]
[343920875,1733068250828,-1366.59,0.00028219,3]
[343920876,1733068250839,-500.0,0.00028219,3]
[343920877,1733068250848,-500.0,0.00028219,3]
[343920878,1733068250857,-6292.63,0.00028219,3]
[343920879,1733068250867,-7411.92,0.00028219,3]
[343920880,1733068250876,-500.0,0.00028219,3]
[343920881,1733068250886,-505.20672025,0.00028219,3]
[343920882,1733068250895,-590.24,0.00028219,3]
[343920883,1733068250905,-500.0,0.00028219,3]
[343920884,1733068250915,-500.0,0.00028219,3]
[343920885,1733068250925,-365.51995247,0.00028219,3]
[343920886,1733068250935,-500.0,0.00028219,3]
[343920887,1733068250945,-500.0,0.00028219,3]
[343920888,1733068250954,-1517.8,0.00028219,3]
[343920889,1733068250963,-500.0,0.00028219,3]
[343920890,1733068250973,-601.92603135,0.00028219,3]
[343920891,1733068250982,-500.0,0.00028219,3]
[343920892,1733068250991,-500.0,0.00028219,3]
[343920893,1733068251000,-500.0,0.00028219,3]
[343920894,1733068251009,-1188.54,0.00028219,3]
[343920895,1733068251021,-500.0,0.00028219,3]
[343920896,1733068251031,-500.0,0.00028219,3]
[343920897,1733068251041,-1649.22,0.00028219,3]
[343920898,1733068251051,-500.0,0.00028219,3]
[343920899,1733068251062,-500.0,0.00028219,3]
[343920900,1733068251073,-500.0,0.00028219,3]
[343920901,1733068251083,-1194.25,0.00028219,3]
[343920902,1733068251094,-500.0,0.00028219,3]
[343920903,1733068251106,-500.0,0.00028219,3]
[343920904,1733068251117,-500.0,0.00028219,3]
[343920905,1733068251129,-500.0,0.00028219,3]
[343920906,1733068251140,-663.18,0.00028219,3]
[343920907,1733068251151,-661.34,0.00028219,3]
[343920908,1733068251162,-500.0,0.00028219,3]
[343920909,1733068251173,-880.68173471,0.00028294,2]
[343920910,1733068251184,-335.4470689,0.0002837,2]
[343920911,1733068251195,-634.1666,0.00028388,15]
[343920912,1733068251205,-3683.0,0.00028422,30]
[343920913,1733068251215,-500.0,0.00028493,3]
[343920914,1733068251225,-500.0,0.00028493,3]
[343920915,1733068251235,-552.55,0.00028493,3]
[343920916,1733068251252,-500.0,0.00028493,3]
[343920917,1733068251266,-242.48700975,0.00028493,3]
[343920918,1733068251280,-313.80264307,0.00028493,3]
[343920919,1733068251292,-500.0,0.00028493,3]
[343920920,1733068251302,-768.27,0.00028493,3]
[343920921,1733068251312,-500.0,0.00028493,3]
[343920922,1733068251322,-500.0,0.00028493,3]
[343920923,1733068251332,-500.0,0.00028493,3]
[343920924,1733068251341,-500.0,0.00028493,3]
[343920925,1733068251351,-500.0,0.00028493,3]
[343920926,1733068251360,-500.0,0.00028493,3]
[343920927,1733068251371,-500.0,0.00028493,3]
[343920928,1733068251380,-500.0,0.00028493,3]
[343920929,1733068251390,-500.0,0.00028493,3]
[343920930,1733068251401,-500.0,0.00028493,3]
[343920931,1733068251412,-500.0,0.00028493,3]
[343920932,1733068251422,-500.0,0.00028493,3]
[343920933,1733068251432,-1000.0,0.00028493,2]
[343920934,1733068251443,-500.0,0.00028493,3]
[343920935,1733068251453,-732.85,0.00028493,3]
[343920936,1733068251463,-576.13,0.00028493,3]
[343920937,1733068251472,-500.0,0.00028493,3]
[343920938,1733068251483,-500.0,0.00028493,3]
[343920939,1733068251493,-500.0,0.00028493,3]
[343920940,1733068251503,-500.0,0.00028493,3]
[343920941,1733068251516,-500.0,0.00028493,3]
[343920942,1733068251526,-500.0,0.00028493,3]
[343920943,1733068251536,-594.81,0.00028493,3]
[343920944,1733068251546,-500.0,0.00028493,3]
[343920945,1733068251557,-500.0,0.00028493,3]
[343920946,1733068251567,-845.7,0.00028493,3]
[343920947,1733068251576,-1460.13,0.00028493,3]
[343920948,1733068251586,-3621.57,0.00028493,3]
[343920949,1733068251596,-500.0,0.00028493,3]
[343920950,1733068251606,-500.0,0.00028493,3]
[343920951,1733068251617,-588.99453329,0.00028493,3]
[343920952,1733068251627,-504.55078298,0.00028493,3]
[343920953,1733068251637,-500.0,0.00028493,3]
[343920954,1733068251647,-699.92,0.00028493,3]
[343920955,1733068251657,-579.62,0.00028493,3]
[343920956,1733068251666,-554.66,0.00028493,3]
[343920957,1733068251676,-500.0,0.00028493,3]
[343920958,1733068251686,-500.0,0.00028493,3]
[343920959,1733068251696,-500.0,0.00028493,3]
[343920960,1733068251706,-565.27,0.00028493,3]
[343920961,1733068251716,-500.0,0.00028493,3]
[343920962,1733068251726,-500.0,0.00028493,3]
[343920963,1733068251735,-15355.54,0.00028493,3]
[343920964,1733068251745,-16219.47,0.00028493,3]
[343920965,1733068251755,-500.0,0.00028493,3]
[343920966,1733068251765,-500.0,0.00028493,3]
[343920967,1733068251775,-500.0,0.00028493,3]
[343920968,1733068251784,-500.0,0.00028493,3]
[343920969,1733068251794,-500.0,0.00028493,3]
[343920970,1733068251804,-500.0,0.00028493,3]
[343920971,1733068251814,-1040.6,0.00028493,3]
[343920972,1733068251824,-2488.21,0.00028493,3]
[343920973,1733068251833,-500.0,0.00028493,3]
[343920974,1733068251843,-500.0,0.00028493,3]
[343920975,1733068251853,-500.0,0.00028493,3]
[343920976,1733068251862,-297.5296168,0.00028493,3]
[343920977,1733068251871,-500.0,0.00028493,3]
[343920978,1733068251881,-500.0,0.00028493,3]
[343920979,1733068251891,-500.0,0.00028493,3]
[343920980,1733068251901,-500.0,0.00028493,3]
[343920981,1733068251910,-500.0,0.00028493,3]
[343920982,1733068251920,-502.95732925,0.00028493,3]
[343920983,1733068251929,-651.83,0.00028493,3]
[343920984,1733068251939,-1055.7,0.00028493,3]
[343920985,1733068251948,-1366.59,0.00028493,3]
[343920986,1733068251958,-500.0,0.00028493,3]
[343920987,1733068251970,-276.92771145,0.00028493,3]
[343920988,1733068251980,-150.86375166,0.00028493,3]
[343920989,1733068251989,-500.0,0.00028493,3]
[343920990,1733068251999,-201.38584066,0.00028493,3]
[343920991,1733068252009,-150.17,0.00028493,3]
[343920992,1733068252024,-6292.63,0.00028493,3]
[343920993,1733068252034,-7411.92,0.00028493,3]
[343920994,1733068252044,-500.0,0.00028493,3]
[343920995,1733068252053,-590.24,0.00028493,3]
[343920996,1733068252063,-502.9811249,0.00028493,3]
[343920997,1733068252073,-505.24592429,0.00028493,3]
[343920998,1733068252083,-500.0,0.00028493,3]
[343920999,1733068252093,-500.0,0.00028493,3]
[343921000,1733068252103,-1517.8,0.00028493,3]
[343921001,1733068252113,-500.0,0.00028493,3]
[343921002,1733068252123,-500.0,0.00028493,3]
[343921003,1733068252133,-500.0,0.00028493,3]
[343921004,1733068252143,-500.0,0.00028493,3]
[343921005,1733068252152,-1188.54,0.00028493,3]
[343921006,1733068252162,-500.0,0.00028493,3]
[343921007,1733068252173,-500.0,0.00028493,3]
[343921008,1733068252182,-1649.22,0.00028493,3]
[343921009,1733068252193,-500.0,0.00028493,3]
[343921010,1733068252203,-500.0,0.00028493,3]
[343921011,1733068252213,-500.0,0.00028493,3]
[343921012,1733068252223,-1194.25,0.00028493,3]
[343921013,1733068252233,-500.0,0.00028493,3]
[343921014,1733068252243,-500.0,0.00028493,3]
[343921015,1733068252259,-500.0,0.00028493,3]
[343921016,1733068252273,-500.0,0.00028493,3]
[343921017,1733068252283,-663.18,0.00028493,3]
[343921018,1733068252293,-661.34,0.00028493,3]
[343921019,1733068252302,-500.0,0.00028493,3]
[343921020,1733068252312,-322.0,0.000285,2]
[343921021,1733068252322,-330.47,0.000285,31]
[343921022,1733068252332,-330.47,0.000285,31]
[343921023,1733068252342,-330.47,0.000285,31]
[343921024,1733068252352,-330.47,0.000285,31]
[343921025,1733068252435,-330.47,0.000285,31]